Cogmind - Beta 17.1 @@@ ROGUE MODE // 2026.09.23 @ 19:03:43 Player: Err. String Expected Got Nil Result: Self-destructed Performance ------------- Evolutions (2) 1000 Regions Visited (5) 1000 Robots Destroyed (134) 670 Value Destroyed (3574) 3574 Prototype IDs (7) 140 Alien Tech Used (0) 0 Bonus (205) 205 TOTAL SCORE: 6589 Bonus ------- High Alert Combat Kills 109 Follower Combat Kills 96 Cogmind --------- Core Integrity 478/550 Matter 262/300 Energy 280/280 System Corruption 0% Temperature Cool (88) Movement Treading (240) Ox1 Location -8/Materials Parts ------- > --- POWER (1) -------- Heavy Ion Engine > --- PROPULSION (3) --- Light Treads Light Treads Improved Treads > --- UTILITY (4) ------ High-capacity Storage Unit Light Armor Plating Improved Light Armor Plating Hacking Suite > --- WEAPON (3) ------- Heavy Assault Cannon > --- INVENTORY (20) --- Heavy Ion Engine Light Treads Light Treads Light Treads Light Treads High-capacity Matter Pod (200) Improved Sensor Array Improved Light Armor Plating Hacking Suite Autogun Autogun Improved Assault Rifle Improved Assault Rifle Shock Bomb Launcher Rocket Launcher Rocket Launcher Improved Datajack Makeshift Spear Peak State ------------ > --- POWER ------------ Heavy Ion Engine > --- PROPULSION ------- Light Treads Light Treads Improved Treads > --- UTILITY ---------- High-capacity Storage Unit Seismic Detector Improved Light Armor Plating Hacking Suite > --- WEAPON ----------- Enhanced Autogun Heavy Assault Cannon > --- INVENTORY -------- Heavy Ion Engine Heavy Ion Engine Light Treads Light Treads Light Treads High-capacity Matter Pod Seismic Detector ECM Suite Improved Light Armor Plating Hacking Suite Hacking Suite Autogun Autogun Improved Assault Rifle Improved Assault Rifle Rocket Launcher Rocket Launcher Datajack Makeshift Spear [Rating: 29] Favorites ----------- Power Heavy Ion Engine Engine Heavy Ion Engine Propulsion Light Treads Treads Light Treads Leg Aluminum Leg Utility Hacking Suite Device Seismic Detector Storage High-capacity Storage Unit Hackware Hacking Suite Protection Improved Light Armor Plating Weapon Light Cannon Energy Gun EM Pulse Gun Energy Cannon Compact Ion Cannon Ballistic Gun Light Assault Rifle Ballistic Cannon Light Cannon Launcher Rocket Launcher Special Melee Weapon Improved Datajack Build | -11 -10 -10 -9 -9 -8 ------- Run | Yrd Mat Min Mat Sto Mat Slots Evolved 4 | . . . 2 . 2 Power . | . . . . . . Propulsion 1 | . . . 1 . . Utility 2 | . . . 1 . 1 Weapon 1 | . . . . . 1 Parts Attached 49 | 2 8 . 17 10 12 Power 6 | . 2 . 2 1 1 Engine 6 | . 2 . 2 1 1 Core . | . . . . . . Reactor . | . . . . . . Propulsion 19 | . 3 . 7 4 5 Treads 18 | . 2 . 7 4 5 Leg 1 | . 1 . . . . Wheel . | . . . . . . Hover . | . . . . . . Flight . | . . . . . . Utility 10 | 1 1 . 4 1 3 Device 1 | 1 . . . . . Storage 2 | . 1 . 1 . . Processor . | . . . . . . Hackware 2 | . . . 1 . 1 Protection 5 | . . . 2 1 2 Artifact . | . . . . . . Weapon 14 | 1 2 . 4 4 3 Energy Gun 1 | . . . . 1 . Energy Cannon 1 | . . . . 1 . Ballistic Gun 4 | 1 . . . 2 1 Ballistic Cannon 6 | . 2 . 4 . . Launcher 1 | . . . . . 1 Special Weapon . | . . . . . . Impact Weapon . | . . . . . . Slashing Weapon . | . . . . . . Piercing Weapon . | . . . . . . Special Melee Weapon 1 | . . . . . 1 Unidentified Prototypes 5 | . . . 1 3 1 Parts Lost 2 | . . . . . 2 Power . | . . . . . . Propulsion 1 | . . . . . 1 Utility 1 | . . . . . 1 Weapon . | . . . . . . Highest Loss Streak 1 | . . . . . 1 To Critical Strikes . | . . . . . . Average Backups 14 | 5 8 11 16 19 19 Power 1 | 1 . . . 1 1 Propulsion 3 | 2 1 2 4 4 3 Utility 5 | . 3 5 6 8 5 Weapon 3 | 1 2 3 3 4 7 Tool/Special . | . . . . . . Unused Backups 36 | 9 5 . 6 1 15 Power 5 | 1 3 . . . 1 Propulsion 7 | 4 . . . . 3 Utility 10 | 1 . . 3 1 5 Weapon 13 | 3 2 . 3 . 5 Tool/Special 1 | . . . . . 1 Average Slot Usage (%) 91 | . 99 100 92 88 73 Engine 11 | . 14 14 11 11 9 Treads 28 | . 18 28 33 33 27 Leg 2 | . 9 . . . . Device 6 | . 13 14 4 . . Storage 11 | . 14 14 11 11 9 Hackware 6 | . . . 10 11 8 Protection 5 | . . . 6 11 9 Ballistic Gun 1 | . 7 . . . . Ballistic Cannon 15 | . 20 28 15 10 8 Peak Build Rating 29 | 7 8 8 22 24 29 Average Rating 16 | 6 7 8 18 22 24 On Entrance 12 | 6 7 8 8 22 23 Avg Prop Armor Cover (%) . | . . . . . . Naked Turns . | . . . . . . Heaviest Build 66 | 11 32 32 65 63 66 Greatest Support 63 | 20 40 40 60 63 63 Greatest Overweight (x) 1 | . 1 . 1 1 1 Average Overweight (x) . | . . . . . . Largest Inventory Capacity 20 | 8 15 15 20 20 20 Average Capacity 16 | 8 12 15 17 20 20 Most Carried 20 | 7 10 13 20 20 20 Average Carried 14 | 5 8 11 16 19 19 Final Capacity 20 | 8 15 15 20 20 20 Final Carried 20 | 5 10 13 20 18 18 Class Distribution -------------------- 71% | Mutant 28% | Scavenger-Mutant Dominant Class ---------------- Mutant | -10/Materials Mutant | -10/Mines Scavenger-Mutant | -9/Materials Scavenger-Mutant | -9/Storage Mutant | -8/Materials Resources | -11 -10 -10 -9 -9 -8 ----------- Run | Yrd Mat Min Mat Sto Mat Matter Collected 4018 | 268 475 436 1356 818 665 Remotely . | . . . . . . Salvage Created 3511 | 158 439 330 798 810 976 Parts 239 | 14 38 33 62 50 42 Haulers Intercepted 8 | . 2 . 2 4 . Recyclers Shooed 6 | . . 2 . 3 1 Parts Field Recycled . | . . . . . . Retrieved Matter . | . . . . . . Parts Self-Destructed . | . . . . . . Prevented . | . . . . . . Parts Restored . | . . . . . . Kills | -11 -10 -10 -9 -9 -8 ------- Run | Yrd Mat Min Mat Sto Mat Combat Hostiles Destroyed 81 | . 10 8 25 16 22 Guns 8 | . 7 . . 1 . Cannons 68 | . 3 8 25 14 18 AOE 5 | . . . . 1 4 Classes Destroyed 13 | 3 6 . 2 . 2 Worker 7 | 1 3 2 1 . . Builder 7 | . 2 1 1 3 . Tunneler 8 | 3 . 4 1 . . Hauler 8 | . 2 . 2 4 . Recycler 10 | 1 1 2 . 3 3 Operator 7 | . 1 . 4 1 1 Watcher 6 | . 2 . 2 1 1 Swarmer 14 | . 5 6 3 . . Grunt 44 | . 5 2 13 10 14 Brawler 3 | . . . 1 . 2 Duelist 1 | . . . . . 1 Sentry 18 | . . . 8 6 4 Hunter 1 | . . . . . 1 Best Kill Streak 12 | 1 3 3 4 4 12 Combat Bots Only 6 | . 3 3 3 4 6 Max Kills in Single Turn 3 | 1 1 1 1 1 3 Gunslinging . | . . . . . . Exploded 3 | . . . . 1 3 Melee . | . . . . . . Uniques/NPCs Destroyed . | . . . . . . Combat | -11 -10 -10 -9 -9 -8 -------- Run | Yrd Mat Min Mat Sto Mat Hostile Shots Fired 366 | . 60 32 110 69 95 Missed 107 | . 20 9 29 18 31 Hits 259 | . 40 23 81 51 64 Melee 1 | . . . 1 . . Projectile 258 | . 40 23 80 51 64 Critical Strikes 9 | . . . 1 2 6 Damage Taken 3454 | . 385 197 1068 834 970 Core 387 | . 97 49 92 77 72 Absorbed by Shields . | . . . . . . Regen/Repaired (Parts) 244 | . . . 17 227 . Core Remaining (%) 66 | 100 . 41 . 57 . Volleys Fired 413 | 34 82 35 105 86 71 Largest 2 | 2 2 2 2 2 1 Hottest 60 | 60 60 60 60 50 50 Shots Fired 607 | 68 164 70 145 89 71 Gun 168 | 68 94 . . 6 . Cannon 436 | . 70 70 145 83 68 Launcher 3 | . . . . . 3 Special . | . . . . . . Kinetic 603 | 67 164 70 145 89 68 Thermal . | . . . . . . Explosive 3 | . . . . . 3 Electromagnetic 1 | 1 . . . . . Robot Hit Streak 14 | 4 10 9 14 11 11 Robot Miss Streak 6 | 3 6 3 4 3 3 Penetration Max 1 | . . . 1 . . Secondary Targets 1 | . 1 . . . . Max Gunslinging Chain 1 | . 1 . . . . Shots Hit Robots 361 | 42 85 37 95 54 48 Core Hits 156 | 8 35 18 37 29 29 Critical Kills . | . . . . . . Critical Parts Destroyed . | . . . . . . Critical Strikes 28 | . 1 1 8 9 9 Blast 28 | . 1 1 8 9 9 Melee Attacks . | . . . . . . Impact . | . . . . . . Slashing . | . . . . . . Piercing . | . . . . . . Sneak Attacks . | . . . . . . Combat Hostiles . | . . . . . . Follow-up Attacks . | . . . . . . Damage Inflicted 11791 | 319 1021 663 3624 3077 3087 Guns 786 | 319 389 . . 78 . Cannons 10073 | . 628 662 3451 2786 2546 Explosions 802 | . . . 113 190 499 Melee . | . . . . . . Ramming 130 | . 4 1 60 23 42 Kinetic 10847 | 307 1017 662 3451 2864 2546 Thermal 113 | . . . 113 . . Explosive 689 | . . . . 190 499 Electromagnetic 12 | 12 . . . . . Impact . | . . . . . . Slashing . | . . . . . . Piercing . | . . . . . . Highest Corruption . | . . . . . . Average Corruption . | . . . . . . Corruption Purged . | . . . . . . Corruption Blocked . | . . . . . . Overload Shots . | . . . . . . Overflow Damage 557 | . 12 31 152 194 168 Projectiles 539 | . 12 31 152 194 150 Explosions 18 | . . . . . 18 Melee . | . . . . . . Knockbacks 44 | . 8 5 21 2 8 Impact . | . . . . . . Kinetic 39 | . 8 5 18 2 6 Secondary 5 | . . . 3 . 2 Self-Inflicted Damage 183 | . . . . 183 . Shots 3 | . . . . 3 . Rammed 16 | . . 1 8 4 3 Targets Rammed 19 | . 2 1 9 4 3 Kicked 2 | . 2 . . . . Crushed 1 | . . . 1 . . Highest Temperature 120 | 20 18 27 120 89 88 Average Temperature 23 | 15 8 21 32 20 15 Received Heat Transfer 1269 | . 87 27 363 306 486 Siege Activations . | . . . . . . Martial Activations . | . . . . . . Shielding Activations . | . . . . . . Robots Disrupted . | . . . . . . Combat Hostiles . | . . . . . . Robots Corrupted . | . . . . . . Combat Hostiles . | . . . . . . Parts Fried . | . . . . . . Impact Corruptions . | . . . . . . Robots Melted . | . . . . . . Combat Hostiles . | . . . . . . Parts Melted 1 | . . . 1 . . Heat Transferred 50 | . . . 50 . . Parts Sabotaged . | . . . . . . Parts Stolen . | . . . . . . Parts Stripped . | . . . . . . Power Chain Reactions . | . . . . . . Alert | -11 -10 -10 -9 -9 -8 ------- Run | Yrd Mat Min Mat Sto Mat Maximum Alert Level 2 | . . . 2 1 2 Low Security (%) 74 | 100 100 100 45 63 81 Level 1 15 | . . . 19 36 14 Level 2 9 | . . . 34 . 4 Level 3 . | . . . . . . Level 4 . | . . . . . . Level 5 . | . . . . . . High Security . | . . . . . . Max Security . | . . . . . . Peak Influence 637 | 5 98 132 544 360 637 Initial 163 | . . 7 2 163 126 Average 146 | 1 23 40 293 159 158 Influence Increases 3483 | 25 454 250 1112 695 947 Destroy 0b10 Robot/C 1740 | . 200 160 620 320 440 Destroy 0b10 Robot/NC 265 | 25 55 45 55 60 25 Destroy Leader 518 | . 68 30 198 100 122 Allied During Kill 8 | . . . 8 . . Successful Hack 102 | . 41 . 23 10 28 Select Force Hacks 120 | . 60 . 30 . 30 Disable Machine 270 | . . 15 75 135 45 Anti-Garrison Action 150 | . . . . . 150 Destroy Structure 160 | . . . 43 70 47 Partial Spotted 15 | . 15 . . . . Lose Combat Pursuer 135 | . 15 . 60 . 60 Influence Decreases 2852 | 25 433 264 732 783 615 Entered New Map 416 | . . 14 5 224 173 Time Decay 2233 | 25 400 250 577 559 422 Lost Part 20 | . . . . . 20 Purge Threat 183 | . 33 . 150 . . Squads Dispatched 21 | . 4 . 6 2 9 Investigation 7 | . 2 . 2 1 2 Extermination . | . . . . . . Reinforcement 10 | . 2 . 4 1 3 Assault 2 | . . . . . 2 Garrison 2 | . . . . . 2 Intercept . | . . . . . . Searches Triggered . | . . . . . . Construction Impeded 1 | . . . 1 . . Haulers Reinforced . | . . . . . . Active Scanning Responses . | . . . . . . Cargo Convoy Interrupts . | . . . . . . Stealth | -11 -10 -10 -9 -9 -8 --------- Run | Yrd Mat Min Mat Sto Mat Distress Signals 4 | . 1 . 1 1 1 Communications Jammed . | . . . . . . Distress Signals . | . . . . . . Times Spotted 129 | . 26 7 46 18 32 Peak Tracking Total 7 | . 5 3 6 4 7 Tactical Retreats 9 | . 1 . 4 . 4 Traps | -11 -10 -10 -9 -9 -8 ------- Run | Yrd Mat Min Mat Sto Mat Traps Triggered 5 | . 1 . 1 3 . Indirectly . | . . . . . . Trap Hack Attempts 3 | . . . . . 3 Triggered 1 | . . . . . 1 Disarmed 1 | . . . . . 1 Reprogrammed . | . . . . . . Reused . | . . . . . . Traps Extracted . | . . . . . . Installed . | . . . . . . Triggered . | . . . . . . Machines | -11 -10 -10 -9 -9 -8 ---------- Run | Yrd Mat Min Mat Sto Mat Machines Disabled 19 | . . 1 5 9 4 Max in Single Turn 2 | . . 1 1 2 1 Garrison Access 1 | . . . . . 1 Machines Repaired . | . . . . . . Machines Dismantled . | . . . . . . Machines Sabotaged . | . . . . . . Overloaded Fab Kills . | . . . . . . Hacking | -11 -10 -10 -9 -9 -8 --------- Run | Yrd Mat Min Mat Sto Mat Machines Accessed 33 | . 8 . 8 9 8 Terminals 26 | . 6 . 6 8 6 Fabricators . | . . . . . . Repair Stations 2 | . . . 1 1 . Recycling Units 4 | . 2 . 1 . 1 Scanalyzers 1 | . . . . . 1 Garrison Access . | . . . . . . Total Hacks 99 | . 23 . 25 21 30 Successful 64 | . 14 . 18 13 19 Failed 35 | . 9 . 7 8 11 Catastrophic . | . . . . . . Database Lockouts . | . . . . . . Manual 71 | . 19 . 18 11 23 Terminals 88 | . 21 . 22 19 26 Fabricators . | . . . . . . Repair Stations 4 | . . . 2 2 . Recycling Units 4 | . 2 . 1 . 1 Scanalyzers 3 | . . . . . 3 Garrison Access . | . . . . . . Terminal Hacks 18 | . 5 . 5 4 4 Part Schematic 1 | . . . . . 1 Robot Analysis 3 | . 1 . 1 . 1 Prototype ID Bank 1 | . 1 . . . . Open Door 3 | . . . . 3 . Terminal Index 3 | . 1 . 1 . 1 Alert Level 1 | . . . . 1 . Unreport Threat 2 | . 1 . 1 . . Locate Traps 3 | . 1 . 1 . 1 Zone Layout 1 | . . . 1 . . Fabricator Hacks . | . . . . . . Repair Station Hacks 4 | . . . 2 2 . Scan Component 2 | . . . 1 1 . Repair 2 | . . . 1 1 . Recycling Unit Hacks . | . . . . . . Scanalyzer 3 | . . . . . 3 Insert Component 1 | . . . . . 1 Analyze 2 | . . . . . 2 Garrison Access Hacks . | . . . . . . Unauthorized Hacks 39 | . 9 . 11 7 12 Terminals 35 | . 7 . 10 7 11 Track 3 | . . . 1 1 1 Botnet 8 | . 1 . 3 1 3 Operators 3 | . 1 . 1 . 1 Skim 21 | . 5 . 5 5 6 Fabricators . | . . . . . . Repair Stations . | . . . . . . Recycling Units 4 | . 2 . 1 . 1 Tunnel 4 | . 2 . 1 . 1 Scanalyzers . | . . . . . . Garrison Access . | . . . . . . Data Cores Recovered 1 | . . . . 1 . Used 1 | . . . . 1 . Hacking Detections 23 | . 6 . 5 6 6 Full Trace Events 1 | . . . . 1 . Feedback Events . | . . . . . . Feedback Blocked . | . . . . . . Robot Schematics Acquired . | . . . . . . Robots Built . | . . . . . . Authchips . | . . . . . . Time . | . . . . . . Total Robot Build Rating . | . . . . . . Part Schematics Acquired 2 | . . . . . 2 Parts Built . | . . . . . . Authchips . | . . . . . . Time . | . . . . . . Total Part Build Rating . | . . . . . . Part Studies Acquired . | . . . . . . Parts Repaired 2 | . . . 1 1 . Time 64 | . . . 26 38 . Parts Recycled . | . . . . . . Recycled Matter . | . . . . . . Retrieved Matter . | . . . . . . Retrieved Components . | . . . . . . Parts Scanalyzed 1 | . . . . . 1 Part Schematics Acquired 1 | . . . . . 1 Parts Damaged . | . . . . . . Bothacking | -11 -10 -10 -9 -9 -8 ------------ Run | Yrd Mat Min Mat Sto Mat Used RIF Installer . | . . . . . . Robots Hacked . | . . . . . . Non-combat . | . . . . . . Combat . | . . . . . . Robot Hacks Applied . | . . . . . . Relay Couplers Released 2 | . . . . . 2 Machine Destruction 2 | . . . . . 2 Fabnet Peak Effective % . | . . . . . . Robots Rewired . | . . . . . . Allies Hacked . | . . . . . . Hacks Repelled . | . . . . . . Allies | -11 -10 -10 -9 -9 -8 -------- Run | Yrd Mat Min Mat Sto Mat Total Allies 1 | . . 1 . . . Largest Group 1 | . . 1 1 . . Highest-Rated Group 31 | . . 31 31 . . Highest-Rated Ally 31 | . . 31 31 . . Total Orders . | . . . . . . Ally Attacks 11 | . . . 11 . . Total Damage 170 | . . . 170 . . Kills 6 | . . . 6 . . Allies Corrupted . | . . . . . . Allies Melted . | . . . . . . Intel | -11 -10 -10 -9 -9 -8 ------- Run | Yrd Mat Min Mat Sto Mat Active Infowar (turns) 3227 | 23 1714 645 754 . 91 Seismic 3227 | 23 1714 645 754 . 91 Robot Analysis Total 3 | . 1 . 1 . 1 Derelict Logs Recovered 1 | . . 1 . . . Drone Launches . | . . . . . . Drone Recoveries . | . . . . . . Exploration | -11 -10 -10 -9 -9 -8 ------------- Run | Yrd Mat Min Mat Sto Mat Turns Passed 7186 | 209 1762 645 1899 1649 1022 Spaces Moved 3092 | 95 991 333 763 463 447 Core . | . . . . . . Treads 2672 | . 666 333 763 463 447 Legs 420 | 95 325 . . . . Wheels . | . . . . . . Hover . | . . . . . . Flight . | . . . . . . Fastest Speed 120 | 120 120 160 160 160 160 Average Speed 173 | 120 147 160 192 229 166 Slowest Speed 240 | 120 240 160 240 240 240 Overloaded Moves . | . . . . . . Propulsion Burnouts . | . . . . . . Robots Hopped . | . . . . . . Potential Cave-ins . | . . . . . . Cave-ins Triggered . | . . . . . . Exploration Rate (%) 56 | 5 96 64 67 68 39 Regions Visited 5 Branch Regions 2 Pre-discovered Areas 8 | . 4 . 2 1 1 Known Exits Taken 3 | . . 1 1 1 . Unknown Exits Taken 2 | 1 1 . . . . Scrap Searched 1 | . . 1 . . . Spaces Dug 6 | . . . . 6 . Terrain Destroyed 181 | . . . 52 80 49 Melee . | . . . . . . Projectile 88 | . . . 25 33 30 AOE 93 | . . . 27 47 19 Terrain Rammed . | . . . . . . Walls Destroyed . | . . . . . . Machines Disabled . | . . . . . . Actions | -11 -10 -10 -9 -9 -8 --------- Run | Yrd Mat Min Mat Sto Mat Total 4221 | 136 1154 375 1015 918 623 Wait 523 | 1 42 4 88 326 62 Move 3087 | 94 990 332 762 462 447 Hop . | . . . . . . Pick Up 43 | 2 12 3 15 4 7 Fast Attach 17 | 1 5 . 3 5 3 Attach 13 | . 1 . 4 2 6 Detach 8 | . 1 . . 2 5 Swap 30 | 1 6 . 11 7 5 Drop 59 | 3 13 . 18 14 11 Fire 413 | 34 82 35 105 86 71 Melee . | . . . . . . Ram . | . . . . . . Kick 2 | . 2 . . . . Crush 17 | . . 1 9 4 3 Escape Stasis 6 | . . . . 6 . Rewire . | . . . . . . Trap 3 | . . . . . 3 Miscellaneous . | . . . . . . Route ------- -11/Scrapyard -10/Materials (discovered 5 exits: *Mat x3 / [*Min] / [*Sub]) -10/Mines (discovered 2 exits: *Mat / [*Sub]) -9/Materials (discovered 6 exits: *Mat x3 / [*Min] / *Sto x2) -9/Storage (discovered 2 exits: *Mat / Rec) -8/Materials (discovered 3 exits: *Fac x3) History --------- Turn | Location | Event 21 | -11/Scrapyard | Discovered new exit (range 3) 210 | -11/Scrapyard | Entered Materials 306 | -10/Materials | Build established: Mutant 385 | -10/Materials | Discovered new exit (range 15) 421 | -10/Materials | Discovered new exit (range 10) 846 | -10/Materials | Learned Storage trap positions 888 | -10/Materials | Learned Storage terminal intel 894 | -10/Materials | Learned 4 Subcaves zone layouts 895 | -10/Materials | Learned location of Subcaves (-10) 897 | -10/Materials | Learned Storage security intel 908 | -10/Materials | Learned Storage stockpile data 928 | -10/Materials | Identified exit to Materials 1933 | -10/Materials | Discovered new exit (range 8) 1972 | -10/Materials | Entered Mines 2117 | -10/Mines | Core integrity fell below 50% 2157 | -10/Mines | Learned Materials garrison access intel 2184 | -10/Mines | Discovered new exit (range 4) 2486 | -10/Mines | Received a Mining Laser from a helpful Derelict 2544 | -10/Mines | A weapon hastily lodged in a ceiling crevice suddenly fell to the ground 2598 | -10/Mines | Discovered exit to Materials (range 8) 2617 | -10/Mines | Entered Materials 2617 | -9/Materials | Accompanied by 1 ally 2617 | -9/Materials | Evolved 2 slots: Propulsion x1, Utility x1 2618 | -9/Materials | Identified exit to Storage 3176 | -9/Materials | Discovered new exit (range 4) 3224 | -9/Materials | Repaired Seismic Detector 3402 | -9/Materials | Discovered exit to Storage (range 4) 3599 | -9/Materials | Discovered new exit (range 16) 3751 | -9/Materials | Discovered new exit (range 16) 4056 | -9/Materials | Build established: Scavenger-Mutant 4183 | -9/Materials | Learned location of Zion (-6) 4261 | -9/Materials | Learned Storage stockpile data 4285 | -9/Materials | Learned Storage non-interactive machine intel 4300 | -9/Materials | Identified exit to Materials 4303 | -9/Materials | Learned 2 Storage zone layouts 4316 | -9/Materials | Learned location of 1 exit from Storage 4367 | -9/Materials | Learned 4 Recycling zone layouts 4516 | -9/Materials | Entered Storage 4518 | -9/Storage | Identified exit to Recycling 4519 | -9/Storage | Loaded intel: 14 trap records 4522 | -9/Storage | Loaded intel: 27 non-interactive machine locations 4523 | -9/Storage | Loaded intel: 14 terminal locations 5753 | -9/Storage | Learned Materials trap positions 5783 | -9/Storage | Repaired Hvy. Assault Cannon 5882 | -9/Storage | Learned Materials trap positions 5904 | -9/Storage | Build established: Mutant 5932 | -9/Storage | Learned Recycling recycling unit intel 5974 | -9/Storage | Learned Materials security intel 6084 | -9/Storage | Learned Storage trap positions 6154 | -9/Storage | Learned Storage trap positions 6165 | -9/Storage | Entered Materials 6165 | -8/Materials | Evolved 2 slots: Utility x1, Weapon x1 6166 | -8/Materials | Loaded intel: 10 trap records 6168 | -8/Materials | Loaded intel: 1 garrison access location 6558 | -8/Materials | Learned 2 Storage zone layouts 6590 | -8/Materials | Identified exit to Factory 6611 | -8/Materials | Learned Storage stockpile data 7073 | -8/Materials | Garrison activated, responded to threat 7084 | -8/Materials | Learned Factory trap positions 7187 | -8/Materials | Self-destructed Last Messages --------------- 07174_ K-01 Serf collects debris. 07174_ Critical hit (Burn: +37). 07176_ The unstable cave ceiling collapses. 07177_ K-01 Serf collects debris. 07178_ Lgt. Treads destroyed. 07178_ K-01 Serf collects debris. 07178_ Critical hit (Burn: +37). 07180_ G-47 Trooper Aluminum Leg blasted off. 07180_ G-47 Trooper destroyed. 07181_ K-01 Serf collects debris. 07182_ G-47 Trooper knocked back. 07182_ ALERT: Garrison Access compromised, dispatching multiple assault carriers. 07182_ Relay Coupler [NC] tumbles out of Garrison Access. 07182_ Relay Coupler [Swarmer] tumbles out of Garrison Access. 07184_ K-01 Serf collects debris. 07184_ Critical hit (Burn: +37). 07185_ K-01 Serf collects debris. Map ----- +----------------------------------------------------+ | | | | | | | | | ?????????????????????????????????????????????????? | | ?????????????????????????????????????????????????? | | ?????????????????????????????????????????????????? | | ?????????????????????????????????????????????????? | | ?????????????????????????????????????????????????? | | ?????????????????????????????????????????????????? | | ?????????????????????????????????????????????????? | | ?????????????????????????????????????????????????? | | ???????????????????????????? ??^?????????????????? | | ?????????????